bitfinex-derivatives/quotes_ETHF0:USTF0_20260314
["timestamp","ask_amount","ask_price","bid_price","bid_amount"]
[1773459257913,7.09248841,2103.1,2102.1,2.98015591]
[1773459258514,1.43673593,2103.0,2102.1,2.98015591]
[1773459262417,9.39373593,2103.0,2102.1,2.98015591]
[1773459262620,5.61422397,2102.9,2102.1,2.98015591]
[1773459263416,1.34306747,2102.8,2102.1,2.98015591]
[1773459265517,1.48528065,2102.6,2102.1,2.98015591]
[1773459265722,2.95214724,2102.3,2101.6,2.95559557]
[1773459266124,4.43742789,2102.2,2101.6,2.95559557]
[1773459266324,2.95214724,2102.6,2101.6,2.95559557]
[1773459266524,4.43742789,2102.4,2101.6,2.95559557]
[1773459266823,4.43742789,2102.4,2101.6,2.96116122]
[1773459267023,2.95214724,2102.3,2101.6,2.96116122]
[1773459271527,2.95214724,2102.5,2101.6,2.96116122]
[1773459271827,8.55996312,2102.4,2101.6,2.96116122]
[1773459272036,2.95214724,2102.4,2101.6,2.96116122]
[1773459272927,2.95214724,2103.0,2102.1,2.95559557]
[1773459275928,2.95214724,2103.7,2102.5,2.95559557]
[1773459276230,2.95214724,2103.5,2102.5,2.95559557]
[1773459276430,2.95214724,2103.3,2102.5,2.95559557]
[1773459276621,2.95214724,2103.2,2102.5,2.95559557]
[1773459276822,2.95717736,2103.2,2102.5,2.95559557]
[1773459285538,0.00503012,2103.2,2102.5,2.95559557]
[1773459285838,2.95214724,2103.3,2102.5,2.95559557]
[1773459285839,2.95214724,2103.6,2102.5,2.95559557]
[1773459286240,2.95214724,2103.6,2102.7,2.95559557]
[1773459286737,2.95757047,2103.6,2102.7,2.95559557]
[1773459289540,2.5548192,2103.5,2102.7,2.95559557]
[1773459289839,2.5548192,2103.1,2102.4,2.61577524]
[1773459291843,2.6523504,2102.9,2102.4,2.61577524]
[1773459295444,2.6523504,2102.7,2101.7,5.88806306]
[1773459295644,2.6523504,2102.7,2101.6,2.54800432]
[1773459296344,2.6523504,2102.5,2101.6,2.54800432]
[1773459301750,6.62082379,2102.5,2101.2,2.54243867]
[1773459301953,2.6523504,2102.1,2101.2,2.54243867]
[1773459302153,2.6523504,2102.1,2100.8,2.54243867]
[1773459302358,2.6523504,2101.9,2100.9,2.54243867]
[1773459302757,2.6573319,2101.9,2100.9,2.54667234]
[1773459309872,2.6523504,2101.7,2100.7,2.54243867]
[1773459310166,2.6523504,2101.7,2100.2,1.34763397]
[1773459310468,2.6523504,2101.7,2100.4,1.34763397]
[1773459310960,2.6523504,2101.7,2100.4,1.35182248]
[1773459315666,4.13953818,2101.2,2100.4,1.35182248]
[1773459315866,2.6523504,2101.1,2100.4,1.35182248]
[1773459318671,2.6523504,2100.9,2100.4,1.35182248]
[1773459322672,1.48746282,2101.4,2100.4,1.35182248]
[1773459322871,2.49607863,2101.2,2100.4,1.35182248]
[1773459323764,2.49607863,2101.2,2100.4,0.00418851]
[1773459323974,2.49607863,2101.2,2100.4,1.24347723]
[1773459336291,2.49607863,2101.0,2100.4,1.24347723]
[1773459339587,2.49607863,2101.0,2100.4,0.00418851]
[1773459339787,2.49607863,2101.0,2099.9,0.98355346]
[1773459339788,2.49607863,2100.8,2099.9,0.98355346]
[1773459340086,2.49607863,2100.6,2099.9,0.98355346]
[1773459340985,2.49607863,2100.6,2099.9,0.98722277]
[1773459354297,2.49607863,2100.6,2099.9,0.00366931]
[1773459354689,2.49607863,2100.6,2099.9,0.76916136]
[1773459363505,2.49607863,2100.6,2099.9,0.00366931]
[1773459368104,2.49607863,2100.6,2099.9,5.94553252]
[1773459370110,2.49607863,2100.6,2099.9,6.50754009]
[1773459371206,2.49607863,2100.6,2099.9,5.94553252]
[1773459372309,2.49607863,2100.6,2100.0,0.53224401]
[1773459374110,2.49607863,2100.6,2099.9,6.53674277]
[1773459376013,2.49607863,2100.6,2100.0,0.57932345]
[1773459376609,2.49607863,2100.6,2099.9,5.94553252]
[1773459378214,2.49607863,2100.6,2099.9,6.49610524]
[1773459378414,2.49607863,2100.6,2100.0,5.94186321]
[1773459379218,2.49607863,2100.6,2099.9,6.49610524]
[1773459379419,2.49607863,2100.6,2099.9,5.94553252]
[1773459381923,2.08581982,2100.5,2099.9,5.94553252]
[1773459382123,2.08581982,2100.5,2099.9,0.00366931]
[1773459383621,2.08581982,2100.4,2099.9,0.00366931]
[1773459383822,2.08983842,2100.4,2099.9,0.00366931]
[1773459389626,2.08983842,2100.4,2099.7,6.39533945]
[1773459390124,2.08983842,2100.4,2099.7,5.94186321]
[1773459390630,2.08983842,2100.4,2099.7,5.94670158]
[1773459391328,2.08983842,2100.4,2099.7,6.28273719]
[1773459392929,2.08581982,2100.3,2099.7,0.00483837]
[1773459400139,2.08581982,2100.1,2099.4,6.1498796]
[1773459400636,2.08581982,2100.1,2099.4,5.94186321]
[1773459401033,2.08581982,2100.1,2099.4,5.94759219]
[1773459401429,2.08581982,2099.9,2099.4,0.00572898]
[1773459415838,0.0040186,2100.4,2099.7,0.78252197]
[1773459415839,1.88294741,2100.3,2099.7,0.78252197]
[1773459422147,1.88294741,2100.9,2100.3,0.74702218]
[1773459422349,1.88294741,2100.9,2100.1,0.74702218]
[1773459422646,1.88294741,2100.9,2100.1,40.8]
[1773459422946,1.88294741,2100.9,2100.2,3.96152227]
[1773459423148,1.88690458,2100.9,2100.2,3.96152227]
[1773459423447,1.88690458,2100.9,2100.1,44.76152227]
[1773459424147,1.88690458,2100.9,2100.1,45.43694969]
[1773459425046,1.88690458,2100.9,2100.2,0.63276622]
[1773459427048,1.88690458,2100.9,2100.1,40.8]
[1773459427249,1.88294741,2100.7,2100.1,40.8]
[1773459427449,1.88294741,2100.7,2100.0,0.60285721]
[1773459427946,1.88294741,2100.7,2100.0,41.40285721]
[1773459432043,1.88294741,2100.7,2099.9,3.96152227]
[1773459432249,1.88294741,2100.7,2100.0,3.96152227]
[1773459433551,1.88294741,2100.7,2100.1,0.61540253]
[1773459434449,1.88294741,2100.7,2100.2,0.6028787]
[1773459434850,0.00395717,2100.9,2100.5,1.48787217]
[1773459434851,1.88690458,2100.9,2100.5,1.48787217]
[1773459435052,1.51994769,2100.9,2100.6,0.59133532]
[1773459435860,1.88294741,2101.3,2100.6,0.59133532]
[1773459436150,1.88672604,2101.3,2100.8,1.8977808]
[1773459437946,1.88294741,2101.4,2100.8,1.8977808]
[1773459438850,1.88853411,2101.4,2100.8,1.8977808]
[1773459439851,1.88853411,2101.4,2100.6,1.8977808]
[1773459446357,1.88853411,2101.4,2100.3,5.79956247]
[1773459446557,1.88853411,2101.4,2100.2,5.79956247]
[1773459447658,1.88853411,2101.4,2100.3,1.8380402]
[1773459449856,1.78179704,2101.3,2100.3,1.8380402]
[1773459450957,1.78179704,2101.3,2100.2,3.96152227]
[1773459451257,1.78179704,2101.3,2100.3,3.96152227]
[1773459451956,1.78179704,2101.3,2100.3,5.79956247]
[1773459452460,1.78179704,2101.3,2100.2,3.96152227]
[1773459453162,1.78179704,2101.3,2100.2,5.79956247]
[1773459459164,1.78179704,2101.1,2100.2,5.79956247]
[1773459459665,1.78179704,2101.1,2100.2,1.8380402]
[1773459462268,1.78179704,2100.9,2100.2,1.8380402]
[1773459462969,9.75679704,2100.9,2100.2,1.8380402]
[1773459463664,7.975,2100.9,2100.3,1.8380402]
[1773459465069,9.75679704,2100.9,2100.3,1.8380402]
[1773459468270,9.75679704,2100.9,2100.4,1.70068961]
[1773459468471,1.66175245,2100.8,2100.4,1.70068961]
[1773459470171,1.66175245,2100.8,2100.3,3.96152227]
[1773459470373,1.66175245,2100.8,2100.2,5.66221188]
[1773459470670,1.66175245,2100.8,2100.3,1.70068961]
[1773459472276,1.66175245,2100.8,2100.4,1.59310885]
[1773459476290,1.66175245,2100.8,2100.4,5.56013338]
[1773459477490,7.985,2100.8,2100.5,1.59310885]
[1773459478491,9.55194979,2100.8,2100.5,1.59310885]
[1773459478791,1.56694979,2100.7,2100.4,3.96702453]
[1773459480289,1.56694979,2100.7,2100.3,3.67052511]
[1773459480491,1.56694979,2100.7,2100.0,7.37366227]
[1773459480492,1.56694979,2100.7,2100.0,7.51572452]
[1773459480687,1.56694979,2100.7,2100.1,1.59310885]
[1773459481790,1.56694979,2100.7,2099.9,5.92261567]
[1773459482188,1.56694979,2100.7,2099.9,7.51572452]
[1773459482394,1.56694979,2100.7,2100.0,1.59310885]
[1773459484698,7.997,2100.6,2100.0,1.59310885]
[1773459484898,9.56394979,2100.6,2100.0,1.59310885]
[1773459487999,1.56694979,2100.5,2100.0,1.59310885]
[1773459492202,1.56694979,2100.5,2099.8,7.51572452]
[1773459492702,1.56694979,2100.5,2099.9,1.59310885]
[1773459508217,1.56694979,2100.5,2099.9,7.51572452]
[1773459510917,1.56694979,2100.5,2100.0,1.59750072]
[1773459511118,1.62071933,2100.8,2100.3,1.59750072]
[1773459511314,1.62071933,2100.8,2100.1,7.52011639]
[1773459511516,1.62071933,2100.8,2100.0,5.92261567]
[1773459511920,1.62071933,2100.8,2100.0,7.52011639]
[1773459513321,1.62071933,2100.6,2099.9,7.52011639]
[1773459513520,1.62071933,2100.4,2099.9,1.59750072]
[1773459517828,1.62071933,2100.4,2099.8,5.92261567]
[1773459518030,1.62071933,2100.4,2099.6,7.52011639]
[1773459518230,1.62071933,2100.4,2099.7,1.59750072]
[1773459519127,1.62071933,2100.4,2099.6,5.92261567]
[1773459519531,1.62071933,2100.4,2099.7,1.59750072]
[1773459522430,1.62071933,2100.2,2099.5,5.92261567]
[1773459522632,1.62071933,2100.0,2099.5,7.52011639]
[1773459523230,1.62071933,2100.0,2099.5,1.59750072]
[1773459525837,9.68071933,2100.1,2099.5,1.59750072]
[1773459526635,1.50307505,2100.0,2099.5,1.59750072]
[1773459527332,8.069,2100.0,2099.5,1.59750072]
[1773459529038,9.57207505,2100.0,2099.5,1.59750072]
[1773459530439,1.48792822,2099.8,2099.4,0.00572898]
[1773459530736,1.50307505,2099.7,2099.0,7.36424812]
[1773459530941,1.50307505,2099.7,2099.0,48.16424812]
[1773459531142,1.43476597,2099.5,2099.0,42.24163245]
[1773459531343,1.43476597,2099.5,2099.1,1.45844716]
[1773459531547,1.439506,2099.5,2099.1,0.00614391]
[1773459532444,1.439506,2099.5,2099.1,1.46459107]
[1773459535643,1.439506,2099.5,2098.9,0.45851932]
[1773459536646,1.439506,2099.5,2098.9,0.46187813]
[1773459541549,0.00474003,2099.5,2098.9,0.46187813]
[1773459541751,9.51976597,2099.9,2099.2,0.49299087]
[1773459542447,8.085,2099.9,2099.4,0.49252701]
[1773459542751,0.00532203,2099.9,2099.4,0.49252701]
[1773459544351,9.50776597,2100.1,2099.4,0.49252701]
[1773459545452,9.51115591,2100.1,2099.4,0.49252701]
[1773459547055,9.51115591,2100.1,2099.5,1.48792822]
[1773459547355,9.51115591,2100.1,2099.6,0.42026167]
[1773459549853,1.43476597,2100.3,2099.8,0.38882058]
[1773459550954,1.44061241,2100.3,2099.8,0.38882058]
[1773459551350,1.44061241,2100.3,2099.6,0.37846317]
[1773459556667,1.44061241,2100.3,2100.0,0.31170189]
[1773459557563,0.00584644,2100.3,2100.0,0.31170189]
[1773459557763,2.33601327,2100.4,2100.0,0.31170189]
[1773459558661,2.34144834,2100.4,2100.0,0.31170189]
[1773459559764,1.42389583,2100.5,2100.0,0.31170189]
[1773459560661,0.00473117,2100.5,2100.2,1.45844716]
[1773459560861,9.52676597,2100.7,2100.2,1.45844716]
[1773459561062,1.43476597,2100.7,2100.2,1.45844716]
[1773459561262,1.43476597,2100.7,2100.1,1.48792822]
[1773459561263,1.3027563,2101.1,2100.4,1.41114184]
[1773459561764,1.30696826,2101.1,2100.4,1.41539224]
[1773459565768,1.3027563,2101.0,2100.4,1.41539224]
[1773459570166,1.3027563,2101.0,2100.4,0.0042504]
[1773459573973,1.3027563,2101.0,2100.1,1.41114184]
[1773459574969,1.3027563,2101.0,2100.1,1.41538891]
[1773459577774,0.00421196,2101.1,2100.3,7.33375751]
[1773459577964,0.00421196,2101.1,2100.4,1.41114184]
[1773459578272,1.30696826,2101.1,2100.4,1.41114184]
[1773459579174,0.00421196,2101.1,2100.4,1.41114184]
[1773459579370,8.104,2101.6,2100.4,1.41114184]
[1773459579583,1.3027563,2101.5,2100.7,1.41114184]
[1773459580071,1.3027563,2101.9,2100.8,1.41114184]
[1773459580479,1.30647899,2101.9,2100.8,1.41114184]
[1773459580975,1.30647899,2101.9,2100.8,7.33375751]
[1773459581177,1.30647899,2101.9,2100.9,1.41114184]
[1773459581768,1.3027563,2102.1,2101.4,1.41114184]
[1773459582978,1.30846091,2102.1,2101.4,1.41114184]
[1773459585280,0.00570461,2102.1,2101.4,1.41114184]
[1773459585479,0.00570461,2102.1,2101.6,1.41114184]
[1773459585781,0.00570461,2102.1,2101.6,1.41639912]
[1773459587085,1.38431017,2102.4,2101.6,1.41639912]
[1773459587282,1.38431017,2102.4,2101.6,0.00525728]
[1773459588177,1.39019815,2102.4,2101.6,1.38311385]
[1773459596284,1.39019815,2102.4,2101.1,42.28715243]
[1773459596285,1.39019815,2102.4,2101.2,1.41481461]
[1773459597489,1.39019815,2102.4,2101.2,1.41895574]
[1773459602287,1.39019815,2102.4,2101.3,40.8]
[1773459602589,1.39019815,2102.4,2101.4,1.41481461]
[1773459603689,1.39019815,2102.4,2101.2,40.80414113]
[1773459603895,1.39019815,2102.4,2101.3,1.41481461]
[1773459604492,1.3895611,2102.2,2101.3,1.41481461]
[1773459606995,1.3895611,2102.0,2101.0,5.92261567]
[1773459607188,1.3895611,2101.9,2100.7,1.41481461]
[1773459607391,1.3895611,2101.8,2100.7,1.41481461]
[1773459608088,1.3895611,2101.8,2100.7,1.41967572]
[1773459608593,1.3895611,2101.7,2100.7,1.41967572]
[1773459614394,1.3895611,2101.7,2100.9,1.41481461]
[1773459618612,4.22990024,2102.3,2100.9,1.41481461]
[1773459618613,1.3895611,2101.8,2100.9,1.41481461]
[1773459618813,3.99778702,2102.4,2100.9,1.41481461]
[1773459618814,1.3895611,2102.1,2100.9,1.41481461]
[1773459619315,1.3895611,2102.0,2100.8,1.41481461]
[1773459619713,1.3895611,2102.0,2100.9,1.41481461]
[1773459622715,1.3895611,2102.0,2101.1,1.27647295]
[1773459627214,1.3895611,2102.0,2101.1,5.22259308]
[1773459627509,1.3895611,2102.0,2101.2,1.27647295]
[1773459630017,1.3895611,2102.0,2101.3,1.27647295]
[1773459631704,1.3895611,2102.0,2101.4,1.27647295]
[1773459632310,1.3895611,2102.0,2101.5,1.27647295]
[1773459634918,1.3895611,2102.0,2101.4,5.22259308]
[1773459635218,1.3895611,2102.0,2101.4,1.27647295]
[1773459635719,1.3895611,2102.0,2101.2,3.94612013]
[1773459635918,1.3895611,2102.0,2101.2,5.22259308]
[1773459637318,1.3895611,2102.0,2101.3,1.27647295]
[1773459638020,1.3895611,2102.0,2101.2,5.22259308]
[1773459638718,1.3895611,2102.0,2101.2,1.27647295]
[1773459642925,1.3895611,2102.0,2101.1,3.94612013]
[1773459643125,1.3895611,2102.0,2101.0,5.22259308]
[1773459643623,1.21365402,2101.7,2101.1,1.27647295]
[1773459644326,1.21365402,2101.7,2101.1,5.22259308]
[1773459646529,1.21365402,2101.7,2101.1,5.21259308]
[1773459650840,1.21365402,2101.7,2101.1,1.26647295]
[1773459651242,1.21365402,2101.7,2101.1,5.21259308]
[1773459652943,1.21365402,2101.7,2101.2,1.14408179]
[1773459654841,1.1386647,2101.5,2101.1,1.14408179]
[1773459657041,1.1386647,2101.5,2101.0,3.96600442]
[1773459657246,1.1386647,2101.3,2101.0,1.14408179]
[1773459657648,1.1386647,2101.6,2101.0,1.14408179]
[1773459659744,9.1096647,2101.7,2101.0,1.14408179]
[1773459659949,1.1386647,2101.7,2101.0,1.14408179]
[1773459662549,1.1386647,2101.8,2101.0,1.14408179]
[1773459663644,1.1386647,2101.7,2101.0,1.14408179]
[1773459663851,1.1386647,2101.5,2101.0,1.14408179]
[1773459664949,1.1386647,2101.5,2100.8,1.14408179]
[1773459668451,1.1386647,2101.5,2100.9,1.14408179]
[1773459668656,1.1386647,2101.6,2100.9,1.14408179]
[1773459689570,8.96277679,2101.7,2100.9,1.14408179]
[1773459689971,0.98377679,2101.6,2100.9,1.14408179]
[1773459695777,0.98377679,2101.6,2100.9,7.06669746]
[1773459695968,0.98377679,2101.6,2101.0,0.97273176]
[1773459699377,8.96277679,2101.7,2101.1,0.97273176]
[1773459702181,0.98377679,2101.7,2101.1,0.97273176]
[1773459702380,0.98377679,2102.0,2101.1,0.97273176]
[1773459702583,0.98377679,2101.8,2101.1,0.97273176]
[1773459702776,0.98377679,2101.8,2101.2,0.97273176]
[1773459706183,0.98377679,2102.0,2101.4,0.97273176]
[1773459706584,0.9086066,2102.1,2101.4,0.97273176]
[1773459707082,0.9086066,2102.1,2101.3,6.16052567]
[1773459707083,0.9086066,2102.1,2101.5,0.92777285]
[1773459708484,1.79526971,2102.2,2101.7,0.92777285]
[1773459708685,0.9086066,2102.1,2101.7,0.92777285]
[1773459710387,1.79526971,2102.2,2101.7,0.92777285]
[1773459710995,0.88677391,2102.1,2101.7,0.92777285]
[1773459712794,0.88677391,2102.1,2101.6,1.18178596]
[1773459713896,0.88677391,2102.1,2101.7,0.94391596]
[1773459721499,0.88677391,2102.1,2101.6,0.94391596]
[1773459723201,0.88677391,2102.3,2101.7,0.94391596]
[1773459724495,0.88677391,2102.3,2101.8,0.94391596]
[1773459729001,0.00588798,2102.4,2101.8,0.94391596]
[1773459729206,0.89266189,2102.4,2101.8,0.94391596]
[1773459733808,0.89266189,2102.4,2101.7,3.95098884]
[1773459735507,0.89266189,2102.4,2101.4,6.86653163]
[1773459736212,8.035,2102.3,2101.5,0.94391596]
[1773459736402,0.88677391,2102.2,2101.5,0.94391596]
[1773459737808,0.88677391,2102.2,2101.2,6.86653163]
[1773459737809,0.88677391,2102.1,2101.2,6.86653163]
[1773459738008,0.88677391,2102.1,2101.2,0.94391596]
[1773459746424,8.035,2102.3,2101.2,0.94391596]
[1773459746620,0.98167722,2102.2,2101.3,0.94627444]
[1773459750923,0.98167722,2102.1,2101.3,0.94627444]
[1773459760436,0.98167722,2102.1,2101.4,0.94627444]
[1773459761235,0.98167722,2102.1,2101.5,0.94627444]
[1773459767537,0.8899011,2102.3,2101.5,0.94627444]
[1773459767732,0.8899011,2102.3,2101.6,0.8952226]
[1773459768739,0.8899011,2102.3,2101.7,0.8952226]
[1773459769640,0.89578908,2102.4,2101.8,0.8952226]
[1773459771945,0.00588798,2102.4,2101.8,0.8952226]
[1773459772142,0.00588798,2102.4,2101.9,0.87512814]
[1773459772840,0.89660094,2102.4,2101.9,0.87512814]
[1773459773139,0.89071296,2102.4,2101.9,0.87512814]
[1773459773339,0.87746259,2103.0,2102.3,0.87512814]
[1773459774236,0.86825992,2102.7,2102.1,0.87512814]
[1773459775343,0.86825992,2102.7,2102.1,0.8812169]
[1773459782445,0.86825992,2102.7,2102.1,0.00608876]
[1773459783550,0.86825992,2102.7,2102.1,0.8812169]
[1773459787352,0.89071296,2102.8,2102.1,0.8812169]
[1773459789658,0.8959497,2103.0,2102.1,0.8812169]
[1773459789954,0.8959497,2103.0,2102.2,0.87512814]
[1773459790756,0.89071296,2102.7,2102.2,0.87512814]
[1773459791158,0.89071296,2102.7,2102.1,0.8812169]
[1773459791361,0.89071296,2102.5,2102.1,0.8812169]
[1773459799766,0.86718591,2102.8,2102.2,0.87512814]
[1773459805676,0.86718591,2102.8,2102.3,0.79304796]
[1773459807570,0.86718591,2102.8,2102.1,4.74798253]
[1773459807771,0.8061459,2102.6,2102.1,4.74798253]
[1773459814081,0.8061459,2102.6,2102.2,0.79304796]
[1773459814278,0.8061459,2102.5,2101.8,0.79304796]
[1773459815287,0.8061459,2102.5,2101.8,0.79801962]
[1773459815690,0.8061459,2102.5,2101.8,0.00497166]
[1773459815987,0.8061459,2102.5,2101.8,0.79801962]
[1773459816189,0.8061459,2102.5,2101.8,0.00497166]
[1773459817186,0.8061459,2102.4,2101.6,0.79304796]
[1773459817689,0.8061459,2102.4,2101.5,0.79304796]
[1773459818084,0.8061459,2102.4,2101.5,0.79673313]
[1773459820486,8.7831459,2102.6,2101.6,0.79304796]
[1773459821087,0.8061459,2102.5,2101.6,6.71566363]
[1773459821286,0.8061459,2102.5,2101.7,0.79304796]
[1773459824394,0.8061459,2102.6,2101.7,0.79304796]
[1773459824595,0.8061459,2102.6,2101.8,0.79304796]
[1773459827093,0.8061459,2102.6,2101.9,0.88902504]
[1773459829396,0.8061459,2102.6,2101.7,6.16047567]
[1773459829397,0.00523674,2103.0,2102.1,0.88902504]
[1773459829598,0.88806541,2103.3,2102.5,0.88902504]
[1773459830203,0.88806541,2103.3,2102.2,0.88902504]
[1773459830700,0.88806541,2103.2,2102.2,0.88902504]
[1773459832003,0.81941595,2103.1,2102.2,0.88902504]
[1773459833902,0.81941595,2103.0,2101.9,0.830744]
[1773459834091,0.81941595,2102.9,2101.9,0.830744]
[1773459834290,0.81941595,2102.7,2101.9,0.830744]
[1773459834705,0.81941595,2102.6,2101.6,5.92261567]
[1773459834908,0.81941595,2102.3,2101.5,0.83442917]
[1773459835707,7.981,2102.2,2101.5,0.83442917]
[1773459835905,0.81941595,2102.1,2101.5,0.83442917]
[1773459837616,8.80041595,2102.2,2101.5,0.83442917]
[1773459838205,7.981,2102.2,2101.5,0.83442917]
[1773459839715,0.81941595,2102.1,2101.5,0.83442917]
[1773459841217,7.981,2102.2,2101.5,0.83442917]
[1773459842616,0.81941595,2102.3,2101.6,0.830744]
[1773459857025,0.81941595,2102.3,2101.5,0.83442917]
[1773459860628,0.81941595,2102.5,2101.6,0.830744]
[1773459863429,0.81941595,2102.5,2101.7,0.69417701]
[1773459870735,0.81941595,2102.5,2101.6,5.92261567]
[1773459870939,0.74156457,2102.0,2101.5,0.00368517]
[1773459871136,0.74156457,2102.0,2101.5,0.69786218]
[1773459872036,0.74156457,2102.0,2101.5,0.00368517]
[1773459874238,0.74156457,2101.8,2101.2,0.69417701]
[1773459874439,7.948,2102.0,2101.2,0.69417701]
[1773459874738,0.74156457,2101.9,2101.2,0.69417701]
[1773459875238,0.74686965,2101.9,2101.2,0.69760134]
[1773459903662,4.6288929,2102.4,2101.9,0.65129403]
[1773459903861,0.64564386,2102.3,2101.7,0.65129403]
[1773459904061,0.64564386,2102.3,2101.6,0.65129403]
[1773459904462,0.64564386,2102.2,2101.6,0.65129403]
[1773459904767,0.64980461,2102.2,2101.6,0.65129403]
[1773459907467,0.64564386,2102.1,2101.6,0.65129403]
[1773459909865,0.64564386,2101.7,2101.3,0.65129403]
[1773459910866,0.64564386,2101.7,2101.2,0.65471836]
[1773459911063,0.64564386,2101.7,2100.9,48.41161227]
[1773459911064,0.64564386,2101.5,2101.0,5.92261567]
[1773459911271,0.64564386,2101.3,2100.9,0.65129403]
[1773459911666,0.64564386,2101.3,2100.6,0.65129403]
[1773459912367,0.64564386,2101.3,2100.6,0.656822]
[1773459915268,0.64564386,2101.5,2100.8,0.65129403]
[1773459919372,0.64564386,2101.3,2100.8,0.65129403]
[1773459923871,0.64292594,2101.1,2100.6,0.00552797]
[1773459924071,0.64292594,2101.1,2100.6,0.63385375]
[1773459926277,0.64292594,2101.1,2100.4,0.62832578]
[1773459927280,0.64292594,2101.1,2100.4,0.63197859]
[1773459928379,0.64292594,2100.9,2100.4,0.63197859]
[1773459930079,0.64292594,2100.9,2100.4,0.00365281]
[1773459930785,0.64292594,2100.9,2100.4,0.63197859]
[1773459931683,0.64292594,2100.9,2100.1,0.62832578]
[1773459932779,0.64292594,2100.9,2100.1,0.63438761]
[1773459936389,0.64292594,2101.0,2100.1,0.63438761]
[1773459942098,0.64292594,2101.0,2100.2,0.62832578]
[1773459945101,7.697,2101.1,2100.2,0.62832578]
[1773459945102,0.64292594,2101.2,2100.2,0.62832578]
[1773459953205,0.64292594,2101.2,2100.3,0.54140733]
[1773459965203,0.64292594,2101.2,2100.4,0.54140733]
[1773459978619,0.57204522,2101.1,2100.4,0.54140733]
[1773459978820,0.57204522,2100.9,2100.4,0.54140733]
[1773459983323,7.925,2101.0,2100.4,0.54140733]
[1773459983818,1.42595794,2101.5,2100.8,0.58466349]
[1773459984021,0.55412043,2101.4,2100.8,0.58466349]
[1773459984522,0.55412043,2101.2,2100.6,0.58466349]
[1773459986019,7.938,2101.3,2100.6,0.58466349]
[1773459986218,7.938,2101.3,2100.6,0.82264349]
[1773459986418,7.938,2101.3,2100.7,0.58466349]
[1773459986815,0.87183751,2101.5,2100.7,0.58466349]
[1773459987013,0.87183751,2101.5,2100.8,0.58466349]
[1773459987525,0.55412043,2101.7,2100.8,0.58466349]
[1773459991730,0.55412043,2101.7,2101.0,0.58466349]
[1773459992926,7.946,2101.8,2101.0,0.58466349]
[1773459993127,8.50012043,2101.8,2101.0,0.58466349]
[1773459993827,0.55412043,2102.0,2101.2,0.58466349]
[1773459994024,0.55412043,2102.1,2101.2,0.58466349]
[1773459998830,0.55412043,2102.1,2101.4,0.58466349]
[1773460000225,7.96016075,2102.2,2101.4,0.58466349]
[1773460001030,8.51428118,2102.2,2101.4,0.58466349]
[1773460002131,0.55828118,2102.2,2101.5,0.58466349]
[1773460002321,0.00416075,2102.2,2101.5,0.58466349]
[1773460002527,0.00416075,2102.2,2101.6,0.58466349]
[1773460002824,0.00416075,2102.2,2101.6,0.59071311]
[1773460003932,0.55412043,2102.5,2101.6,0.59071311]
[1773460004333,0.55412043,2102.5,2101.8,0.58466349]
[1773460004533,8.51512043,2102.6,2101.8,0.58466349]
[1773460004931,8.52067571,2102.6,2101.8,0.58466349]
[1773460005631,0.55412043,2102.5,2101.8,0.58466349]
[1773460005831,0.55412043,2102.4,2101.8,0.58466349]
[1773460006933,0.55070336,2102.5,2101.8,0.58466349]
[1773460012535,0.53627832,2102.0,2101.6,0.57202223]
[1773460012742,0.53627832,2102.0,2101.5,0.56597261]
[1773460013836,0.53627832,2102.0,2101.5,0.56961818]
[1773460019843,0.53627832,2101.8,2101.3,0.56597261]
[1773460020141,0.53627832,2101.4,2101.1,0.56597261]
[1773460020634,0.53627832,2101.6,2101.1,0.56597261]
[1773460020835,0.53627832,2101.6,2101.1,0.57027609]
[1773460021442,0.53627832,2101.6,2101.1,0.00430348]
[1773460021846,0.53627832,2101.6,2101.1,0.57027609]
[1773460022344,0.53627832,2101.6,2101.1,0.00430348]
[1773460022546,4.22105904,2102.2,2100.7,48.23961936]
[1773460022547,0.53627832,2101.4,2100.9,0.56597261]
[1773460022944,0.53627832,2101.2,2100.9,0.56597261]
[1773460023144,0.53627832,2101.2,2100.8,0.56597261]
[1773460023445,0.53627832,2101.2,2100.8,0.57064498]
[1773460029848,2.02227496,2101.3,2100.8,0.57064498]
[1773460030948,1.48599664,2101.3,2100.8,0.57064498]
[1773460031245,0.53627832,2101.4,2100.8,0.57064498]
[1773460035250,1.48599664,2101.5,2100.8,0.57064498]
[1773460035655,2.02227496,2101.5,2100.8,0.57064498]
[1773460035852,0.53627832,2101.4,2100.8,0.57064498]
[1773460038759,0.53627832,2101.2,2100.8,0.00051162]
[1773460043061,0.53627832,2101.2,2100.8,0.55091982]
[1773460043262,0.55170238,2100.8,2100.4,0.5504082]
[1773460043457,0.55170238,2100.8,2100.3,0.46352133]
[1773460044162,0.55170238,2100.8,2100.2,0.46352807]
[1773460044361,0.55170238,2100.8,2100.2,0.46726586]
[1773460044362,0.55585081,2100.8,2100.2,0.46726586]
[1773460055981,0.55585081,2100.8,2100.2,0.703315]
[1773460056179,0.55585081,2100.8,2100.3,0.46258727]
[1773460056880,0.55585081,2100.8,2100.2,0.23978693]
[1773460058074,0.55585081,2100.8,2100.2,0.70169593]
[1773460058280,0.55585081,2100.8,2100.3,0.461909]
[1773460058775,0.55585081,2100.8,2100.2,0.23978693]
[1773460058975,0.55585081,2100.8,2100.2,0.00290202]
[1773460059174,0.55585081,2100.8,2099.8,6.48166864]
[1773460059576,0.55585081,2100.8,2099.8,41.3504082]
[1773460060074,0.55585081,2100.8,2099.8,41.35493805]
[1773460060273,0.55585081,2100.8,2099.8,0.55493805]
[1773460062484,0.55585081,2100.8,2099.9,0.5504082]
[1773460064087,0.55585081,2100.8,2100.0,0.5504082]
[1773460066282,0.55585081,2100.8,2100.1,0.5504082]
[1773460068493,0.58130675,2101.2,2100.3,0.58519608]
[1773460068692,0.58130675,2101.2,2100.4,0.58519608]
[1773460068986,0.58130675,2101.2,2100.5,0.58519608]
[1773460069289,0.58130675,2101.2,2100.6,0.58519608]
[1773460069489,0.58466561,2101.2,2100.6,0.58519608]
[1773460070290,6.17890024,2102.0,2100.7,0.58519608]
[1773460070291,0.58130675,2101.7,2100.7,0.58519608]
[1773460070485,0.58130675,2101.7,2100.8,0.58519608]
[1773460071289,0.58743859,2101.7,2100.8,0.58519608]
[1773460071492,0.58743859,2101.7,2100.9,0.56034519]
[1773460076088,0.58743859,2101.7,2100.9,41.36034519]
[1773460076293,0.58743859,2101.7,2100.8,0.23482824]
[1773460076494,0.58743859,2101.7,2100.6,0.56034519]
[1773460076889,0.58743859,2101.7,2100.7,0.56034519]
[1773460084598,0.58743859,2101.7,2100.6,41.36034519]
[1773460084802,0.58743859,2101.7,2100.6,0.56034519]
[1773460086701,0.58743859,2101.7,2100.4,41.36034519]
[1773460087002,0.58743859,2101.7,2100.5,0.56034519]
[1773460093210,0.58743859,2101.7,2100.6,0.56034519]
[1773460097406,0.58279593,2101.5,2100.5,6.49160563]
[1773460097604,0.58279593,2101.5,2100.5,0.56034519]
[1773460098113,0.58279593,2101.4,2100.4,5.93126044]
[1773460098407,0.58279593,2101.4,2100.4,6.49160563]
[1773460099505,0.58279593,2101.4,2100.4,0.56034519]